bitfinex/quotes_SOLUSD_20250902
["timestamp","ask_amount","ask_price","bid_price","bid_amount"]
[1756793712236,3.51685961,204.32,204.29,9.19640356]
[1756793712433,3.51685961,204.32,204.3,4.30328924]
[1756793712948,3.51685961,204.32,204.31,3.62328924]
[1756793713554,3.51685961,204.32,204.31,3.62381727]
[1756793714119,4.17685961,204.32,204.31,8.51834029]
[1756793714519,3.51685961,204.32,204.31,8.51834029]
[1756793716047,3.51685961,204.32,204.31,3.62411816]
[1756793716263,0.06,204.33,204.31,3.62411816]
[1756793716458,0.06,204.37,204.33,26.0]
[1756793716625,26.66,204.43,204.34,3.62411816]
[1756793716822,3.45685961,204.4,204.35,7.76097777]
[1756793717022,3.45685961,204.4,204.36,4.30411816]
[1756793717231,3.45685961,204.4,204.37,4.30411816]
[1756793717441,3.45685961,204.4,204.38,3.62411816]
[1756793717638,3.45685961,204.4,204.39,3.62411816]
[1756793717939,0.66,204.43,204.39,4.30411816]
[1756793717940,3.45685961,204.41,204.39,4.30411816]
[1756793718141,3.45685961,204.41,204.4,8.50941155]
[1756793718367,7.75030411,204.49,204.4,5.5723679]
[1756793718534,3.45685961,204.46,204.41,7.75020497]
[1756793718733,3.45685961,204.47,204.42,4.29334536]
[1756793718950,3.45685961,204.47,204.43,4.29334536]
[1756793719157,3.45685961,204.47,204.44,3.61334536]
[1756793719344,3.45685961,204.47,204.43,0.68]
[1756793719345,3.45685961,204.45,204.43,0.68]
[1756793719545,3.45685961,204.45,204.41,0.68]
[1756793719856,0.66,204.44,204.42,3.60769471]
[1756793720057,3.45685961,204.43,204.4,17.12328766]
[1756793720248,3.45685961,204.42,204.41,3.60824188]
[1756793720641,4.11685961,204.42,204.39,4.89255892]
[1756793720961,3.51685961,204.4,204.39,4.89255892]
[1756793722058,3.51685961,204.4,204.37,17.15574491]
[1756793722238,3.51685961,204.4,204.39,0.68]
[1756793722749,3.51685961,204.4,204.39,3.60310098]
[1756793722953,3.51685961,204.4,204.39,3.60298631]
[1756793723146,3.51685961,204.4,204.37,17.83574491]
[1756793723367,3.45685961,204.38,204.37,0.03]
[1756793723574,17.05245362,204.38,204.37,0.03]
[1756793723858,13.59559401,204.37,204.34,0.03]
[1756793724035,3.45685961,204.35,204.34,0.03]
[1756793724435,4.11685961,204.35,204.34,0.03]
[1756793727681,17.71245362,204.35,204.34,0.03]
[1756793730265,56.55245362,204.35,204.34,0.03]
[1756793731356,3.45685961,204.35,204.34,0.71]
[1756793731555,3.45685961,204.35,204.34,4.31266555]
[1756793731953,3.45685961,204.35,204.34,3.63266555]
[1756793732162,3.45685961,204.35,204.34,0.03]
[1756793734287,0.66,204.38,204.34,0.03]
[1756793734589,0.06,204.4,204.34,0.03]
[1756793734791,3.45685961,204.37,204.34,0.71]
[1756793734960,3.45685961,204.38,204.35,0.68]
[1756793735291,3.45685961,204.38,204.36,0.68]
[1756793735490,2.20989538,204.38,204.36,0.68]
[1756793736386,2.20989538,204.38,204.37,4.89308606]
[1756793737356,0.06,204.4,204.37,5.58308606]
[1756793737594,2.20989538,204.39,204.37,4.89308606]
[1756793737788,2.20989538,204.38,204.37,4.89308606]
[1756793738258,2.20989538,204.38,204.37,5.58308606]
[1756793738459,2.20989538,204.39,204.37,5.58308606]
[1756793738981,0.06,204.38,204.37,5.58308606]
[1756793739700,2.26989538,204.38,204.37,5.58308606]
[1756793740280,2.26989538,204.38,204.34,0.03]
[1756793740281,2.97989538,204.38,204.34,0.03]
[1756793740477,2.20989538,204.35,204.34,0.03]
[1756793741804,0.77,204.38,204.34,0.03]
[1756793742103,2.20989538,204.35,204.34,0.03]
[1756793743684,0.71,204.35,204.34,0.03]
[1756793743894,2.91989538,204.35,204.34,0.03]
[1756793744486,26.0,204.37,204.34,0.03]
[1756793744704,2.20989538,204.35,204.34,0.03]
[1756793745506,0.71,204.35,204.34,0.03]
[1756793745714,2.91989538,204.35,204.34,0.03]
[1756793745926,2.20989538,204.35,204.34,0.03]
[1756793748718,2.91989538,204.35,204.34,0.03]
[1756793749309,16.51548939,204.35,204.34,0.03]
[1756793750392,2.91989538,204.35,204.34,0.03]
[1756793750591,2.20989538,204.35,204.34,0.03]
[1756793752614,2.91989538,204.35,204.34,0.03]
[1756793753123,2.20989538,204.33,204.32,0.03]
[1756793753424,54.64548939,204.33,204.32,0.03]
[1756793753716,41.75989538,204.33,204.32,0.03]
[1756793754738,2.91989538,204.33,204.32,0.03]
[1756793754900,16.51548939,204.33,204.32,0.03]
[1756793756138,55.35548939,204.33,204.32,0.03]
[1756793757126,55.35548939,204.33,204.31,0.03]
[1756793757127,13.59559401,204.32,204.31,0.03]
[1756793757337,24.64507091,204.32,204.29,0.03]
[1756793757515,24.64507091,204.3,204.29,0.03]
[1756793758114,25.35507091,204.3,204.29,0.03]
[1756793760214,64.19507091,204.3,204.29,0.03]
[1756793760819,53.14559401,204.3,204.29,0.03]
[1756793761108,64.19507091,204.3,204.29,0.03]
[1756793761635,64.19507091,204.3,204.27,0.03]
[1756793761933,15.80548939,204.28,204.27,0.03]
[1756793762518,54.64548939,204.28,204.27,0.03]
[1756793763120,55.35548939,204.28,204.27,0.03]
[1756793763741,39.59559401,204.26,204.25,0.03]
[1756793764038,41.80548939,204.26,204.25,0.03]
[1756793764249,42.51548939,204.26,204.25,0.03]
[1756793765610,81.35548939,204.26,204.25,0.03]
[1756793765930,79.14559401,204.26,204.25,0.03]
[1756793766141,39.59559401,204.23,204.22,0.03]
[1756793766439,89.48507091,204.23,204.22,0.03]
[1756793766737,13.59559401,204.22,204.2,0.03]
[1756793767032,26.0,204.18,204.17,0.03]
[1756793767232,67.04989538,204.18,204.17,0.03]
[1756793767617,67.04989538,204.18,204.17,0.71]
[1756793767836,41.04989538,204.18,204.17,0.03]
[1756793768212,41.04989538,204.18,204.17,5.60787921]
[1756793768626,2.20989538,204.2,204.17,5.60787921]
[1756793768913,2.20989538,204.2,204.18,0.68]
[1756793769319,2.20989538,204.2,204.19,0.68]
[1756793769939,2.20989538,204.2,204.19,5.57739948]
[1756793770933,2.20989538,204.21,204.19,5.57739948]
[1756793771136,2.20989538,204.21,204.2,0.68]
[1756793771941,2.20989538,204.21,204.2,5.57715964]
[1756793773728,13.59559401,204.2,204.17,0.03]
[1756793773935,15.80548939,204.18,204.17,0.03]
[1756793774959,41.04989538,204.18,204.17,0.03]
[1756793775278,13.59559401,204.23,204.17,0.71]
[1756793775434,2.20989538,204.2,204.17,0.71]
[1756793775625,0.66,204.27,204.18,0.68]
[1756793775827,2.20989538,204.25,204.19,2.20989538]
[1756793776152,2.20989538,204.26,204.2,20.02995413]
[1756793776333,2.20989538,204.25,204.21,0.68]
[1756793776532,2.20989538,204.25,204.22,0.68]
[1756793776727,2.20989538,204.25,204.23,0.68]
[1756793777979,2.20989538,204.25,204.24,4.89620054]
[1756793779274,2.20989538,204.25,204.22,4.89648763]
[1756793779475,2.20989538,204.23,204.21,4.89691065]
[1756793779783,2.20989538,204.22,204.21,4.89691065]
[1756793780279,2.20989538,204.22,204.2,0.03]
[1756793780458,2.20989538,204.21,204.2,0.03]
[1756793784580,25.30507091,204.21,204.2,0.03]
[1756793784882,16.46548939,204.21,204.2,0.03]
[1756793785452,54.64548939,204.21,204.2,0.03]
[1756793785654,13.59559401,204.23,204.2,0.03]
[1756793785863,41.04989538,204.21,204.2,0.03]
[1756793786263,55.30548939,204.21,204.2,0.03]
[1756793786463,64.14507091,204.21,204.2,0.03]
[1756793786879,69.04199074,204.21,204.2,0.03]
[1756793787171,15.80548939,204.18,204.17,0.03]
[1756793787368,54.64548939,204.18,204.17,0.03]
[1756793787588,55.30548939,204.18,204.17,0.03]
[1756793788666,39.59559401,204.16,204.15,0.03]
[1756793788967,41.80548939,204.16,204.15,0.03]
[1756793789284,42.46548939,204.16,204.15,0.03]
[1756793789781,28.20989538,204.16,204.15,0.03]
[1756793789951,80.64548939,204.16,204.15,0.03]
[1756793790378,81.30548939,204.16,204.15,0.03]
[1756793791263,79.09559401,204.16,204.15,0.03]
[1756793791469,80.64548939,204.16,204.15,0.03]
[1756793792364,81.30548939,204.16,204.15,0.03]
[1756793793371,86.20360851,204.16,204.15,0.03]
[1756793793572,81.30548939,204.16,204.15,0.03]
[1756793793982,41.80548939,204.16,204.15,0.03]
[1756793794290,2.20989538,204.16,204.15,0.03]
[1756793794593,41.04989538,204.16,204.15,0.71]
[1756793794890,2.20989538,204.16,204.15,0.71]
[1756793795193,13.59559401,204.22,204.15,5.60835904]
[1756793795367,0.68,204.24,204.16,0.67]
[1756793795368,2.20989538,204.19,204.16,0.67]
[1756793795564,3.45969868,204.2,204.16,0.67]
[1756793795778,3.45969868,204.2,204.16,4.28250922]
[1756793796008,3.45969868,204.2,204.17,0.67]
[1756793796558,3.45969868,204.2,204.18,4.89763933]
[1756793796777,3.45969868,204.19,204.18,4.89763933]
[1756793797091,3.45969868,204.19,204.16,4.89791898]
[1756793797277,3.45969868,204.17,204.16,5.56791898]
[1756793797694,3.45969868,204.17,204.16,4.89791898]
[1756793798069,3.45969868,204.17,204.15,4.92835904]
[1756793798273,3.45969868,204.16,204.15,5.59835904]
[1756793798586,3.45969868,204.16,204.15,0.03]
[1756793799893,3.45969868,204.16,204.15,0.7]
[1756793800084,3.45969868,204.17,204.16,4.89811912]
[1756793800286,3.45969868,204.17,204.16,5.56811912]
[1756793800476,3.45969868,204.17,204.16,4.89811912]
[1756793800994,4.13969868,204.17,204.15,4.92828044]
[1756793801186,3.45969868,204.16,204.15,4.92828044]
[1756793801381,3.45969868,204.16,204.15,0.03]
[1756793801688,4.13969868,204.16,204.15,0.03]
[1756793802094,3.45969868,204.16,204.15,0.03]
[1756793803273,17.73529269,204.16,204.15,0.03]
[1756793803526,22.63341181,204.16,204.15,0.03]
[1756793804002,48.63341181,204.16,204.15,0.03]
[1756793804783,81.89529269,204.16,204.15,0.03]
[1756793805087,82.57529269,204.16,204.15,0.03]
[1756793807898,81.89529269,204.16,204.15,0.03]
[1756793808110,42.29969868,204.16,204.15,0.03]
[1756793808492,56.57529269,204.16,204.15,0.03]
[1756793811525,22.63341181,204.16,204.15,0.03]
[1756793811817,61.47341181,204.16,204.15,0.03]
[1756793812409,13.59559401,204.15,204.14,0.03]
[1756793812608,17.05529269,204.15,204.14,0.03]
[1756793812799,17.73529269,204.15,204.14,0.03]
[1756793813410,17.05529269,204.15,204.14,0.03]
[1756793813716,56.57529269,204.15,204.14,0.03]
[1756793816510,55.89529269,204.15,204.14,0.03]
[1756793816702,56.57529269,204.15,204.14,0.03]
[1756793819024,17.73529269,204.15,204.14,0.03]
[1756793819329,61.47365173,204.15,204.14,0.03]
[1756793822210,61.47365173,204.15,204.13,0.2]
[1756793822211,39.59559401,204.13,204.12,0.03]
[1756793822522,43.05529269,204.13,204.12,0.03]
[1756793822819,81.89529269,204.13,204.12,0.03]
[1756793823023,82.57529269,204.13,204.12,0.03]
[1756793823393,86.03499137,204.13,204.12,0.03]
[1756793823599,89.88876358,204.13,204.12,0.03]
[1756793823904,88.3929779,204.13,204.12,0.03]
[1756793824098,93.29181687,204.13,204.12,0.03]
[1756793824321,91.32790387,204.13,204.12,0.03]
[1756793824518,96.75161155,204.13,204.1,0.03]
[1756793824699,20.51499137,204.11,204.1,0.03]
[1756793824898,59.33499137,204.11,204.1,0.03]
[1756793825115,60.01499137,204.11,204.1,0.03]
[1756793825624,64.91431036,204.11,204.1,0.03]
[1756793826052,56.55529269,204.11,204.1,0.03]
[1756793826534,61.45461168,204.11,204.1,0.03]
[1756793827605,64.91431036,204.11,204.1,0.03]
[1756793828198,39.59559401,204.07,204.06,0.2]
[1756793828401,81.87529269,204.07,204.06,0.2]
[1756793828605,82.56529269,204.07,204.06,0.2]
[1756793828917,81.87529269,204.07,204.06,0.2]
[1756793829632,48.645572,204.07,204.06,0.2]
[1756793829830,89.430257,204.07,204.06,0.2]
[1756793830532,45.70997769,204.07,204.06,0.2]
[1756793830739,84.52997769,204.07,204.06,0.2]
[1756793831640,80.40027901,204.07,204.06,0.2]
[1756793831820,81.89529269,204.07,204.06,0.2]
[1756793832026,83.85988069,204.07,204.06,0.2]
[1756793832633,45.01988069,204.07,204.06,0.2]
[1756793832836,54.40018201,204.07,204.06,0.86]
[1756793833014,57.85988069,204.07,204.06,0.86]
[1756793833210,55.89529269,204.07,204.06,0.2]
[1756793833937,17.05529269,204.07,204.06,0.2]
[1756793834143,43.05529269,204.07,204.06,0.2]
[1756793834316,38.84,204.07,204.06,0.86]
[1756793834517,38.84,204.07,204.06,5.76051945]
[1756793835014,0.06,204.17,204.06,9.22021813]
[1756793835217,5.76052,204.15,204.08,3.45969868]
[1756793835429,42.29969868,204.14,204.09,0.66]
[1756793835639,38.84,204.14,204.1,4.89955903]
[1756793835937,3.45969868,204.16,204.11,0.66]
[1756793836242,38.82,204.15,204.11,0.66]
[1756793836420,42.27969868,204.15,204.11,0.66]
[1756793837026,3.45969868,204.15,204.12,4.89907897]
[1756793837225,0.06,204.17,204.13,0.66]
[1756793837618,0.06,204.17,204.14,3.45969868]
[1756793837832,0.06,204.17,204.15,4.11969868]
[1756793838233,0.06,204.17,204.12,17.1467764]
[1756793838234,0.06,204.17,204.16,0.66]
[1756793839440,0.06,204.17,204.16,5.55811912]
[1756793840641,0.06,204.2,204.16,21.2631156]
[1756793840856,1e-08,204.2,204.19,3.45969868]
[1756793841144,1e-08,204.2,204.17,0.66]
[1756793841353,3.45969868,204.18,204.16,17.14341692]
[1756793841530,1e-08,204.2,204.17,0.66]
[1756793842750,3.45969868,204.18,204.17,5.55787921]
[1756793844250,3.45969868,204.18,204.17,4.89787921]
[1756793844628,3.45969868,204.18,204.16,4.89811912]
[1756793844827,3.45969868,204.17,204.16,5.55811912]
[1756793847254,3.45969868,204.19,204.16,5.55811912]
[1756793847552,3.45969868,204.19,204.17,0.66]
[1756793848455,3.45969868,204.19,204.15,0.66]
[1756793848649,3.45969868,204.19,204.16,0.66]
[1756793849051,3.45969868,204.18,204.14,17.80455184]
[1756793849250,3.45969868,204.17,204.15,0.66]
[1756793849455,3.45969869,204.2,204.15,0.66]
[1756793849650,0.06,204.17,204.15,0.66]
[1756793850443,0.06,204.17,204.16,4.89811912]
[1756793850644,1e-08,204.2,204.16,20.6031156]
[1756793850852,1e-08,204.2,204.17,4.11969868]
[1756793851351,1e-08,204.2,204.18,0.66]
[1756793851561,1e-08,204.22,204.19,29.45969868]
[1756793851864,1e-08,204.22,204.21,3.45969868]
[1756793852228,1e-08,204.22,204.21,4.11969868]
[1756793852456,1e-08,204.22,204.21,9.01661851]
[1756793857553,1e-08,204.22,204.21,7.76907105]
[1756793863363,0.06,204.28,204.24,26.0]
[1756793863544,0.06,204.28,204.26,2.21215122]
[1756793863862,0.06,204.29,204.27,2.21215122]
[1756793863863,1e-08,204.29,204.27,2.21215122]
[1756793864054,1e-08,204.29,204.28,28.21215122]
[1756793864253,1e-08,204.29,204.28,28.90215122]
[1756793865063,1e-08,204.29,204.28,26.0]
[1756793865257,1e-08,204.29,204.27,4.89548147]
[1756793865464,1e-08,204.29,204.27,5.58548147]
[1756793866047,1e-08,204.29,204.27,4.89548147]
[1756793866258,0.70000001,204.29,204.27,4.89548147]
[1756793866741,2.91215122,204.28,204.27,4.89548147]
[1756793867140,0.06,204.28,204.27,4.89548147]
[1756793867338,0.76,204.28,204.27,4.89548147]
[1756793867663,2.97215122,204.28,204.27,4.89548147]
[1756793868076,0.76,204.28,204.25,12.2395439]
[1756793868248,2.97215122,204.28,204.25,12.2395439]
[1756793868449,0.76,204.28,204.25,12.2395439]
[1756793868748,2.97215122,204.28,204.25,12.2395439]
[1756793868945,2.21215122,204.26,204.24,4.89620054]
[1756793869156,2.91215122,204.26,204.24,4.89620054]
[1756793869466,0.06,204.28,204.24,17.82670191]
[1756793869467,2.27215122,204.28,204.24,17.82670191]
[1756793869671,2.97215122,204.28,204.24,17.13670191]
[1756793869845,2.27215122,204.28,204.24,17.13670191]
[1756793870050,0.7,204.27,204.24,17.13670191]
[1756793870557,2.27215122,204.28,204.24,17.82670191]
[1756793871092,0.76,204.28,204.24,17.82670191]
[1756793871274,0.06,204.28,204.26,2.21215122]
[1756793871462,1e-08,204.28,204.27,2.90215122]
[1756793871842,1e-08,204.28,204.27,0.69]
[1756793872046,1e-08,204.28,204.27,2.90215122]
[1756793872463,1e-08,204.28,204.27,7.79763269]
[1756793872675,1e-08,204.28,204.27,4.89548147]
[1756793874350,1e-08,204.28,204.27,7.79763269]
[1756793874846,1e-08,204.28,204.27,47.04718083]
[1756793876273,1e-08,204.28,204.27,6.07502961]
[1756793876582,1e-08,204.28,204.27,46.55763269]
[1756793877074,1e-08,204.28,204.27,43.65548147]
[1756793877257,1e-08,204.28,204.27,4.89548147]
[1756793877457,1e-08,204.28,204.27,7.10763269]
[1756793879355,1e-08,204.28,204.26,4.89572113]
[1756793879579,1e-08,204.28,204.27,2.21215122]
[1756793880082,1e-08,204.28,204.26,7.10787235]
[1756793880275,0.70000001,204.28,204.26,4.89572113]
[1756793880854,2.91215123,204.28,204.26,4.89572113]
[1756793881587,1e-08,204.28,204.26,4.89572113]
[1756793881755,1e-08,204.28,204.26,5.58572113]
[1756793881950,1e-08,204.28,204.26,7.10787235]
[1756793882256,1e-08,204.28,204.27,0.69]
[1756793884582,1e-08,204.28,204.27,7.79763269]
[1756793885083,1e-08,204.28,204.27,44.32548147]
[1756793885556,1e-08,204.28,204.27,46.53763269]
[1756793885758,1e-08,204.28,204.27,46.54763269]
[1756793885952,1e-08,204.28,204.27,46.57763269]
[1756793886160,1e-08,204.31,204.27,84.81633636]
[1756793886364,1e-08,204.34,204.31,26.0]
[1756793886561,0.72,204.4,204.36,4.8933255]
[1756793886780,0.06,204.4,204.37,2.21215122]
[1756793886968,0.06,204.4,204.37,0.7]
[1756793887659,0.06,204.4,204.36,55.86663926]
[1756793887860,0.06,204.4,204.36,17.12663926]
[1756793888075,0.72,204.4,204.37,38.74]
[1756793888280,0.66,204.39,204.37,38.74]
[1756793889183,0.66,204.39,204.38,4.89284665]
[1756793889483,0.06,204.4,204.38,4.89284665]
[1756793889858,0.72,204.4,204.38,4.89284665]
[1756793890279,0.66,204.39,204.38,4.89284665]
[1756793891078,0.06,204.4,204.36,17.12663926]
[1756793891283,0.06,204.4,204.37,0.7]
[1756793891461,0.72,204.4,204.36,19.33879048]
[1756793892556,0.72,204.4,204.36,17.12663926]
[1756793892757,0.72,204.4,204.36,19.33879048]
[1756793893181,0.72,204.4,204.36,20.03879048]
[1756793894087,2.87215122,204.39,204.36,4.8933255]
[1756793894274,2.87215122,204.38,204.36,4.8933255]
[1756793894668,2.87215122,204.37,204.33,4.89404394]
[1756793894876,8.90860488,204.4,204.33,4.89404394]
[1756793894877,2.21215122,204.34,204.33,4.89404394]
[1756793895082,2.87215122,204.34,204.29,17.13250496]
[1756793895279,2.21215122,204.31,204.29,4.8950022]
[1756793895488,2.21215122,204.32,204.29,4.8950022]
[1756793895781,2.87215122,204.32,204.29,4.8950022]
[1756793896281,2.21215122,204.3,204.29,4.8950022]
[1756793897080,2.21215122,204.3,204.27,0.03]
[1756793897081,0.66,204.34,204.27,17.86418514]
[1756793897286,2.21215122,204.31,204.27,17.86418514]
[1756793897986,2.21215122,204.3,204.27,17.86418514]
[1756793898561,0.66,204.33,204.27,17.86418514]
[1756793898766,2.21215122,204.3,204.27,17.86418514]
[1756793899490,2.21215122,204.31,204.28,0.7]
[1756793899662,2.21215122,204.32,204.29,0.7]
[1756793900589,2.21215122,204.31,204.27,17.16418514]
[1756793900776,2.21215122,204.31,204.27,17.86418514]
[1756793901172,2.21215122,204.3,204.27,17.16418514]
[1756793901487,2.21215122,204.3,204.27,17.86418514]
[1756793902378,2.21215122,204.31,204.27,17.86418514]
[1756793902578,2.21215122,204.31,204.28,0.7]
[1756793903689,0.06,204.3,204.28,0.7]
[1756793903894,20.0,204.29,204.1,38.72]
[1756793904097,8.84694136,204.08,204.07,25.04]
[1756793904397,8.4,204.18,204.07,11.0607515]
[1756793904564,55.28,204.29,204.01,1.49e-06]
[1756793904764,46.11044829,204.28,203.97,4.3e-07]
[1756793904992,46.11044829,204.28,203.97,29.43]
[1756793905285,46.11044829,204.28,203.95,2.55460704]
[1756793905491,46.11044829,204.28,203.96,1.38]
[1756793905702,2.21159789,204.21,204.2,0.00055305]
[1756793905872,2.21159789,204.21,204.1,0.00055588]
[1756793906196,38.72,204.2,204.11,8.8486068]
[1756793906364,38.72,204.2,203.94,2.75316357]
[1756793906706,38.72,204.2,203.95,0.24506189]
[1756793906872,38.72,204.2,204.16,0.00055305]
[1756793907075,38.72,204.2,203.94,2.68940512]
[1756793907286,38.72,204.2,203.94,27.69621018]
[1756793907477,38.72,204.2,203.95,3.79727061]
[1756793907789,38.72,204.2,203.94,213.8]
[1756793907982,38.72,204.2,203.94,211.03534044]
[1756793908181,38.72,204.2,203.94,108.82571837]
[1756793908392,38.72,204.2,204.16,0.00069153]
[1756793908566,38.72,204.2,204.0,123.34215841]
[1756793908981,38.72,204.2,204.0,0.00070743]
[1756793909163,38.72,204.2,204.15,0.00069153]
[1756793909362,2.7660619,204.18,204.12,0.00069153]
[1756793909886,38.72,204.2,203.97,2.76675671]
[1756793910078,2.7660619,204.18,203.96,14.73]
[1756793910273,38.72,204.2,203.94,4.92106516]
[1756793910480,38.72,204.2,203.91,29.43]
[1756793910681,81.94752032,204.0,203.91,29.43]
[1756793910899,62.31581909,204.0,203.99,99.44359441]
[1756793911188,48.07581909,204.0,203.99,116.93965631]
[1756793911392,28.93411786,204.0,203.99,116.93965631]
[1756793911690,24.03241663,204.0,203.99,116.93965631]
[1756793912090,19.1307154,204.0,203.99,130.53525032]
[1756793912467,19.1307154,204.0,203.99,164.59165591]
[1756793912468,14.22901417,204.0,203.99,164.59165591]
[1756793912677,38.72,204.04,203.94,135.71658813]
[1756793912888,38.72,204.04,204.02,3.5e-07]
[1756793913086,38.72,204.04,203.94,133.5]
[1756793913401,35.28,204.1,204.03,3.5e-07]
[1756793913696,38.72,204.09,203.94,138.33796735]
[1756793914497,38.72,204.09,204.05,3.5e-07]
[1756793914969,16.36165591,204.08,203.94,4.83796735]
[1756793915170,13.59559401,204.08,204.02,2.7660619]
[1756793915384,13.59559401,204.08,204.01,2.7660619]
[1756793916109,13.59559401,204.08,204.01,28.7660619]
[1756793916694,13.59559401,204.08,204.03,26.0]
[1756793916898,13.59559401,204.08,204.0,2.7660619]
[1756793917394,38.72,204.07,204.05,2.7660619]
[1756793918690,38.72,204.07,204.04,2.7660619]
[1756793919089,13.59559401,204.06,203.98,40.73]
[1756793919302,13.59559401,204.06,204.02,2.7660619]
[1756793919612,13.59559401,204.06,203.95,14.73]
[1756793919802,2.76949273,204.03,203.98,2.76949273]
[1756793919976,13.59559401,204.06,203.98,2.76949273]
[1756793920177,2.76949273,204.04,203.98,2.76949273]
[1756793920372,13.59559401,204.02,203.98,2.76949273]
[1756793920596,41.48949273,204.01,203.95,2.76949273]
[1756793920907,41.48949273,204.01,203.96,2.76949273]
[1756793921128,43.04949758,204.01,203.96,4.32949758]
[1756793921691,43.04949758,204.01,203.98,0.03]
[1756793921884,4.32949758,204.0,203.98,0.03]
[1756793923098,4.32949758,203.99,203.98,0.03]
[1756793924686,17.92509159,203.99,203.98,0.03]
[1756793925680,18.03056275,203.99,203.98,0.03]
[1756793926206,56.75056275,203.99,203.98,0.03]
[1756793927812,52.31559401,203.99,203.98,0.03]
[1756793928014,56.75056275,203.99,203.98,0.03]
[1756793928703,52.31559401,203.99,203.98,0.03]
[1756793929021,18.03056275,203.99,203.98,0.03]
[1756793929396,56.75056275,203.99,203.98,0.03]
[1756793930529,18.03056275,203.99,203.98,0.03]
[1756793930819,52.31559401,203.99,203.98,0.03]
[1756793931020,56.75056275,203.99,203.98,0.03]
[1756793931713,18.03056275,203.99,203.98,0.03]
[1756793932016,56.75056275,203.99,203.98,0.03]
[1756793932518,52.31559401,203.99,203.98,0.03]
[1756793933329,13.59559401,203.99,203.98,0.03]
[1756793933639,13.59559401,203.99,203.98,11.03374415]
[1756793933640,38.72,203.99,203.98,11.03374415]
[1756793933995,38.72,203.99,203.98,6.70700176]
[1756793934331,38.72,203.99,203.98,4.35674239]
[1756793935426,16.94,203.99,203.98,4.35674239]
[1756793935797,16.94,203.99,203.98,19.07741739]
[1756793936028,0.06,204.03,204.01,26.0]
[1756793936203,38.72,204.02,204.01,26.0]
[1756793936605,38.72,204.02,204.01,40.720676]
[1756793937526,38.72,204.02,204.01,45.04741839]
[1756793938694,38.72,204.02,204.01,45.14905661]
[1756793940628,38.78,204.02,204.01,45.14905661]
[1756793942232,38.78,204.02,204.01,40.720676]
[1756793942434,38.78,204.02,204.01,45.14905661]
[1756793945715,38.78,204.02,204.01,45.04736911]
[1756793946154,0.06,204.05,204.01,51.72437087]
[1756793946334,0.06,204.05,204.04,26.0]
[1756793946520,38.76,204.05,204.04,30.32669311]
[1756793946840,17.84275816,204.05,204.04,12.96596987]
[1756793947027,9.36400816,204.05,204.04,12.96596987]
[1756793947227,4.3994121,204.05,204.04,12.96596987]
[1756793947520,33.79540394,204.05,204.04,12.96596987]
[1756793947733,33.79540394,204.05,204.04,21.01896811]
[1756793947916,7.5976311,204.05,204.04,34.63927676]
[1756793948119,4.39848737,204.05,204.04,39.57596987]
[1756793948440,38.12,204.06,204.04,39.57596987]
[1756793948748,0.06,204.07,204.04,39.57596987]
[1756793948920,17.32275816,204.08,204.04,49.97927676]
[1756793949123,12.4181621,204.08,204.07,30.32669311]
[1756793949515,7.51622055,204.08,204.07,30.39056574]
[1756793950846,19.26,204.11,204.07,30.39056574]
[1756793951016,19.26,204.11,204.1,34.78113148]
[1756793951640,19.26,204.11,204.1,49.49314448]
[1756793953840,19.26,204.11,204.1,45.10257874]
[1756793954753,19.26,204.11,204.1,45.03458252]
[1756793955443,19.98,204.11,204.1,45.03458252]
[1756793956049,19.98,204.11,204.1,19.03458252]
[1756793956953,19.26,204.11,204.1,19.03458252]
[1756793958042,4.17042758,204.42,204.1,19.03458252]
[1756793958043,0.72,204.17,204.1,19.03458252]
[1756793958238,38.66,204.16,204.1,14.712013]
[1756793958423,38.66,204.16,204.06,0.61]
[1756793958424,0.06,204.11,204.07,26.0]
[1756793958629,0.06,204.11,204.1,26.0]